Workbook

Sheet Welcome
C1: Refresh the workbook whenever you want to get the most up-to-date data for this template. Go to the Data tab > Refresh All.
B3: Nutrition tracker
B4: Whether you want to lose weight, gain muscle, or eat a more balanced diet, tracking what you eat is an important part of making healthy choices.
C7: Set your dietary and nutrition goals | I7: Keep track of what you eat | O7: Get data on hundreds of foods
D8: Nutrition goals | J8: Food diary | P8: Food list
C12: Do more with data types
D13: Do more
B16: Give feedback to help us improve this template

Sheet Nutrition goals
B3: Set your dietary and nutrition goals
B4: Reach your healthy eating goals by setting targets to help you stay on track.
B5: Tell us about yourself
B6: We'll use your info to give you some recommendations from the Institute of Medicine.
B7: Unit system | D7: Weight | F7: Height
B8: Imperial | D8: 145 | E8: =IF($B$8="Imperial", "lb", "kg") -> lb | F8: 5 | G8: =IF($B$8="Imperial", "ft", "m") -> ft | H8: 4 | I8: =IF($B$8="Imperial", "in", "cm") -> in
B10: Age | D10: Activity level
B11: 24 | D11: Sedentary
B13: Set your daily nutrition goals
B14: Enter your targets, and we'll help you reach them.
B15: Calories | D15: From carbs | F15: From protein | H15: From fat
D16: 50% | F16: 20% | H16: 30%
B17: =_xlfn.CONCAT(TEXT(CalorieTargets!B40,"0")," (female) or ", CHAR(10), TEXT(CalorieTargets!B36,"0")," (male) *") -> 1984 (female) or 2357 (male) * | D17: 45% - 65% * | F17: 10% - 35% * | H17: 20% - 35% *
B19: * These targets are based on the estimated energy required to maintain your current weight and the Dietary Reference Intake recommendations from the Institute of Medicine. The Institute of Medicine offers binary sex options only to inform these equations: male and female. Please choose whichever target aligns most with your physiology.
B20: Institute of Medicine equations
B21: This information is for educational purposes only and is not intended as a substitute for medical advice or diagnosis. You should not use this information to treat a health condition. Always check with a doctor before changing your diet.

Sheet Food diary
B3: Keep track of what you eat
B4: Write down your meals and spot unhealthy eating habits for better nutrition and portion control. These charts will show today's values, so make sure to enter the date. To add foods to the list, type a date and what you ate in the blue highlighted cells below.
B5: If you don't see data for a food item, you may need to convert it to the Foods data type: select the item, go to the Data tab, and in the Data Types Gallery menu, select the Foods icon.
D7: Calories | E7: Carbs | F7: Protein | G7: Fat
D8: Dietary calories | E8: Grams | F8: Grams | G8: Grams
B9: =_xlfn.CONCAT("Summary for ",TEXT(TODAY(),"MMM DD, YYYY")) -> Summary for Aug 11, 2021 | D9: =SUMIF('Food diary'!$B$14:$B$20,TODAY(),'Food diary'!$D$14:$D$20) -> 0 | E9: =SUMIF('Food diary'!$B$14:$B$20,TODAY(),'Food diary'!$E$14:$E$20) -> 0 | F9: =SUMIF('Food diary'!$B$14:$B$20,TODAY(),'Food diary'!$F$14:$F$20) -> 0 | G9: =SUMIF('Food diary'!$B$14:$B$20,TODAY(),'Food diary'!$G$14:$G$20) -> 0
B10: Daily nutrition target | D10: =IF('Nutrition goals'!B16="",2200,'Nutrition goals'!B16) -> 2200 | E10: =(D10*'Nutrition goals'!D16)/4 -> 275 | F10: =(D10*'Nutrition goals'!F16)/4 -> 110 | G10: =(D10*'Nutrition goals'!H16)/9 -> 73
D11: =D9/D10 -> 0% | E11: =E9/E10 -> 0% | F11: =F9/F10 -> 0% | G11: =G9/G10 -> 0%
B12: Food diary
B13: Date | C13: Food | D13: Calories | E13: Carbs | F13: Protein | G13: Fat
B14: 2021-01-01 | D14: =IFERROR(_FV(FoodDiaryTable[[#This Row],[Food]],"calories, total",TRUE), "") -> 0 | E14: =IFERROR(_FV(FoodDiaryTable[[#This Row],[Food]],"carbohydrates, total",TRUE), "") -> 0 | F14: =IFERROR(_FV(FoodDiaryTable[[#This Row],[Food]],"protein, total",TRUE), "") -> 0 | G14: =IFERROR(_FV(FoodDiaryTable[[#This Row],[Food]],"fat, total",TRUE),"") -> 0
B15: 2021-01-01 | D15: =IFERROR(_FV(FoodDiaryTable[[#This Row],[Food]],"calories, total",TRUE), "") -> 0 | E15: =IFERROR(_FV(FoodDiaryTable[[#This Row],[Food]],"carbohydrates, total",TRUE), "") -> 0 | F15: =IFERROR(_FV(FoodDiaryTable[[#This Row],[Food]],"protein, total",TRUE), "") -> 0 | G15: =IFERROR(_FV(FoodDiaryTable[[#This Row],[Food]],"fat, total",TRUE),"") -> 0
B16: 2021-01-01 | D16: =IFERROR(_FV(FoodDiaryTable[[#This Row],[Food]],"calories, total",TRUE), "") -> 0 | E16: =IFERROR(_FV(FoodDiaryTable[[#This Row],[Food]],"carbohydrates, total",TRUE), "") -> 0 | F16: =IFERROR(_FV(FoodDiaryTable[[#This Row],[Food]],"protein, total",TRUE), "") -> 0 | G16: =IFERROR(_FV(FoodDiaryTable[[#This Row],[Food]],"fat, total",TRUE),"") -> 0
B17: 2021-01-01 | D17: =IFERROR(_FV(FoodDiaryTable[[#This Row],[Food]],"calories, total",TRUE), "") -> 35 | E17: =IFERROR(_FV(FoodDiaryTable[[#This Row],[Food]],"carbohydrates, total",TRUE), "") -> 8 | F17: =IFERROR(_FV(FoodDiaryTable[[#This Row],[Food]],"protein, total",TRUE), "") -> 0 | G17: =IFERROR(_FV(FoodDiaryTable[[#This Row],[Food]],"fat, total",TRUE),"") -> 0
D18: =IFERROR(_FV(FoodDiaryTable[[#This Row],[Food]],"calories, total",TRUE), "") ->  | E18: =IFERROR(_FV(FoodDiaryTable[[#This Row],[Food]],"carbohydrates, total",TRUE), "") ->  | F18: =IFERROR(_FV(FoodDiaryTable[[#This Row],[Food]],"protein, total",TRUE), "") ->  | G18: =IFERROR(_FV(FoodDiaryTable[[#This Row],[Food]],"fat, total",TRUE),"") -> 
D19: =IFERROR(_FV(FoodDiaryTable[[#This Row],[Food]],"calories, total",TRUE), "") ->  | E19: =IFERROR(_FV(FoodDiaryTable[[#This Row],[Food]],"carbohydrates, total",TRUE), "") ->  | F19: =IFERROR(_FV(FoodDiaryTable[[#This Row],[Food]],"protein, total",TRUE), "") ->  | G19: =IFERROR(_FV(FoodDiaryTable[[#This Row],[Food]],"fat, total",TRUE),"") -> 
D20: =IFERROR(_FV(FoodDiaryTable[[#This Row],[Food]],"calories, total",TRUE), "") ->  | E20: =IFERROR(_FV(FoodDiaryTable[[#This Row],[Food]],"carbohydrates, total",TRUE), "") ->  | F20: =IFERROR(_FV(FoodDiaryTable[[#This Row],[Food]],"protein, total",TRUE), "") ->  | G20: =IFERROR(_FV(FoodDiaryTable[[#This Row],[Food]],"fat, total",TRUE),"") -> 

Sheet Food list
B3: Get data on hundreds of foods
B4: With the Foods data type, you can explore nutritional information on hundreds of foods (and many more than we can list) in rich detail.
B5: Select the icon next to each food to open a card with more data.
B6: Food | C6: Food type group
C7: Dairy
C8: Sweeteners
C9: Grains
C10: Spices
C11: Beverages
C12: Nuts and seeds
C13: Seafood
C14: Beverages
C15: Condiments
C16: Beverages
C17: Fruit
C18: Fruit
C19: Fruit
C20: Grains
C21: Vegetables
C22: Vegetables
C23: Fruit
C24: Meats
C25: Condiments
C26: Fruit
C27: Herbs
C28: Herbs
C29: Vegetables
C30: Legumes
C31: Meats
C32: Meats
C33: Meats
C34: Vegetables
C35: Sweets
C36: Legumes
C37: Spices
C38: Spices
C39: Fruit
C40: Fruit
C41: Grains
C42: Grains
C43: Grains
C44: Vegetables
C45: Grains
C46: Sweeteners
C47: Dairy
C48: Dairy
C49: Grains
C50: Legumes
C51: Condiments
C52: Spices
C53: Spices
C54: Vegetables
C55: Spices
C56: Vegetables
C57: Vegetables
C58: Dairy
C59: Dairy
C60: Nuts and seeds
C61: Meats
C62: Meats
C63: Meats
C64: Legumes
C65: Spices
C66: Spices
C67: Spices
C68: Sweets
C69: Sweets
C70: Herbs
C71: Spices
C72: Spices
C73: Condiments
C74: Fruit
C75: Beverages
C76: Seafood
C77: Sweeteners
C78: Grains
C79: Grains
C80: Grains
C81: Grains
C82: Grains
C83: Spices
C84: Spices
C85: Vegetables
C86: Spices
C87: Spices
C88: Condiments
C89: Condiments
C90: Legumes
C91: Legumes
C92: Eggs
C93: Vegetables
C94: Eggs
C95: Dairy
C96: Condiments
C97: Spices
C98: Dairy
C99: Fruit
C100: Nuts and seeds
C101: Grains
C102: Dairy
C103: Vegetables
C104: Vegetables
C105: Dairy
C106: Dairy
C107: Legumes
C108: Meats
C109: Meats
C110: Spices
C111: Meats
C112: Dairy
C113: Meats
C114: Meats
C115: Dairy
C116: Sweeteners
C117: Condiments
C118: Spices
C119: Sweets
C120: Condiments
C121: Legumes
C122: Condiments
C123: Meats
C124: Condiments
C125: Fruit
C126: Legumes
C127: Condiments
C128: Fruit
C129: Dairy
C130: Sweeteners
C131: Condiments
C132: Dairy
C133: Sweeteners
C134: Meats
C135: Dairy
C136: Vegetables
C137: Seafood
C138: Condiments
C139: Vegetables
C140: Spices
C141: Nuts and seeds
C142: Grains
C143: Vegetables
C144: Condiments
C145: Vegetables
C146: Vegetables
C147: Beverages
C148: Fruit
C149: Spices
C150: Seafood
C151: Meats
C152: Grains
C153: Spices
C154: Dairy
C155: Herbs
C156: Grains
C157: Fruit
C158: Nuts and seeds
C159: Condiments
C160: Legumes
C161: Legumes
C162: Vegetables
C163: Fruit
C164: Vegetables
C165: Meats
C166: Vegetables
C167: Vegetables
C168: Fruit
C169: Vegetables
C170: Fruit
C171: Legumes
C172: Spices
C173: Vegetables
C174: Beverages
C175: Condiments
C176: Grains
C177: Condiments
C178: Dairy
C179: Grains
C180: Dairy
C181: Herbs
C182: Herbs
C183: Herbs
C184: Condiments
C185: Condiments
C186: Seafood
C187: Herbs
C188: Sweets
C189: Condiments
C190: Vegetables
C191: Beverages
C192: Vegetables
C193: Dairy
C194: Dairy
C195: Condiments
C196: Vegetables
C197: Fruit
C198: Sweeteners
C199: Nuts and seeds
C200: Vegetables
C201: Condiments
C202: Legumes
... 30 more rows

Sheet Do more
B3: Do more with data types
B4: With linked data types, you can insert and work with reliable data from trusted online data sources. Microsoft has partnered with Wolfram to provide rich, interesting facts and data on numerous subjects that you can use and refresh—all without leaving Excel.
B5: Here's how to use data types using the Space data type as an example.
B6: ❶ | C6: Type Earth in the cell below.
C8: You can type other names for the same thing. For example, you can type Planet Earth if you want.
B10: ❷ | C10: With the cell above selected, go to the Data tab and in the Data Type Gallery menu, select the Space icon.
C11: If Excel doesn't recognize the planet, you'll get the option to search for the correct one or try another.
B14: ❸ | C14: Select the Insert Data icon that appears on the right of the cell to see a list of data options. Choose one or more options to add them to the sheet.
C17: And you're done! Your sheet will populate with all the facts and information you need directly from Excel.
C18: Check out this article to learn even more about data types

Sheet DropdownOptions (hidden)
B3: Gender | D3: Age | F3: Activity level
B4: Female | D4: 19-30 | F4: Sedentary | H4: Sedentary means only the light physical activity associated with independent living,.
B5: Male | D5: 31-50 | F5: Moderately active | H5: Moderately active means about half an hour of moderate to vigorous exercise in addition to this.
B6: Other | D6: 51+ | F6: Active | H6: Active means at least an hour of exercise.
F7: Very Active | H7: Very active means being physically active for several hours each day.
B11: Weight | D11: Height1 | F11: Unit system
B12: lb | D12: m | F12: Imperial
B13: kg | D13: ft | F13: Metric

Sheet CalorieTargets (hidden)
D2: Age | F2: Activity level | H2: Weight | K2: Height
D3: ='Nutrition goals'!B11 -> 24 | F3: =IF('Nutrition goals'!D11<>"",'Nutrition goals'!D11, "Sedentary") -> Sedentary | H3: ='Nutrition goals'!D8 -> 145 | I3: ='Nutrition goals'!E8 -> lb | K3: ='Nutrition goals'!F8 -> 5 | L3: ='Nutrition goals'!G8 -> ft
K5: ='Nutrition goals'!H8 -> 4 | L5: ='Nutrition goals'!I8 -> in
H7: Weight in kg | K7: Height in m
H8: =IF(I3="lb", (H3/2.20462262), H3) -> 65.77089371 | I8: kg | K8: =IF(L3="ft",((K3/3.2808399)+(K5/39.3700787)), (K3+(K5/100))) -> 1.625599998 | L8: m
B9: WebMD calorie chart
B11: Gender | C11: Age | D11: Activity level | E11: Calorie range
B12: Female | C12: 19-30 | D12: Sedentary | E12: 1,800-2,000
B13: Female | C13: 19-31 | D13: Moderately active | E13: 2,000-2,200
B14: Female | C14: 19-32 | D14: Active | E14: 2,400
B15: Female | C15: 31-50 | D15: Sedentary | E15: 1,800
B16: Female | C16: 31-51 | D16: Moderately active | E16: 2,000
B17: Female | C17: 31-52 | D17: Active | E17: 2,200
B18: Female | C18: 51+ | D18: Sedentary | E18: 1,600
B19: Female | C19: 51+ | D19: Moderately active | E19: 1,800
B20: Female | C20: 51+ | D20: Active | E20: 2,000-2,200
B21: Male | C21: 19-30 | D21: Sedentary | E21: 2,400-2,600
B22: Male | C22: 19-31 | D22: Moderately active | E22: 2,600-2,800
B23: Male | C23: 19-32 | D23: Active | E23: 3,000
B24: Male | C24: 31-50 | D24: Sedentary | E24: 2,200-2,400
B25: Male | C25: 31-51 | D25: Moderately active | E25: 2,400-2,600
B26: Male | C26: 31-52 | D26: Active | E26: 2,800-3,000
B27: Male | C27: 51+ | D27: Sedentary | E27: 2,000-2,200
B28: Male | C28: 51+ | D28: Moderately active | E28: 2,200-2,400
B29: Male | C29: 51+ | D29: Active | E29: 2,400-2,800
B32: equations from Institute of Medicine Equation
B34: Adult Men:
B35: EER=(662-(9.53*Age))+PA*((15.91*wt)+(539.6*ht))
B36: =(662-(9.53*D3))+(_xlfn.XLOOKUP(F3,Table7[Activity Level],Table7[Adult men]))*((15.91*H8)+(539.6*K8)) -> 2356.868678 | C36: Calories
B38: Adult Women:
B39: EER=(354-(6.91*Age))+PA*((9.36*wt)+(726*ht))
B40: =(354-(6.91*D3))+(_xlfn.XLOOKUP(F3,Table7[Activity Level],Table7[Adult women]))*((9.36*H8)+(726*K8)) -> 1983.961163 | C40: Calories
B42: Adult Other:
B43: EER=(354-(6.91*Age))+PA*((9.36*wt)+(726*ht)) | E43: =AVERAGE(662,354) -> 508
B44: =(E43-(E44*D3))+(_xlfn.XLOOKUP(F3,Table7[Activity Level],Table7[Adult other]))*((E45*H8)+(E46*K8)) -> 2170.414921 | C44: Calories | E44: =AVERAGE(9.53,6.91) -> 8.22
E45: =AVERAGE(15.91,9.36) -> 12.64
E46: =AVERAGE(539.6,726) -> 633
B48: EER | C48: the Estimated Energy Requirement
B50: Age | C50: the age of the adult in years
B52: PA | C52: the Physical Activity coefficient:
C53: Activity Level | D53: Adult men | E53: Adult women | F53: Adult other
C54: Sedentary | D54: 1.00 | E54: 1.00 | F54: =AVERAGE(Table7[[#This Row],[Adult men]:[Adult women]]) -> 1
C55: Moderately Active | D55: 1.11 | E55: 1.12 | F55: =AVERAGE(Table7[[#This Row],[Adult men]:[Adult women]]) -> 1.115
C56: Active | D56: 1.25 | E56: 1.27 | F56: =AVERAGE(Table7[[#This Row],[Adult men]:[Adult women]]) -> 1.26
C57: Very Active | D57: 1.48 | E57: 1.45 | F57: =AVERAGE(Table7[[#This Row],[Adult men]:[Adult women]]) -> 1.465
B59: wt | C59: the weight of the adult in kilograms
B61: ht | C61: the height of the adult in meters

Sheet CarbProteinFatTargets (hidden)
B2: Calories
B3: ='Nutrition goals'!$B$17 -> 1984 (female) or 2357 (male) *
B5: Dietary Reference Intake
C7: Calorie % | E7: Calories | H7: Grams
B8: Column1 | C8: lower end | D8: upper end | E8: lower end2 | F8: upper end3 | G8: cal/g | H8: lower end4 | I8: upper end5 | J8: Range
B9: Carbohydrates | C9: 45% | D9: 65% | E9: =$B$3*C9 ->  | F9: =$B$3*D9 ->  | G9: 4 | H9: =ROUND(E9/Table8[[#This Row],[cal/g]],0) ->  | I9: =ROUND(F9/Table8[[#This Row],[cal/g]],0) ->  | J9: =_xlfn.CONCAT(H9," - ",I9," g *") -> 
B10: Protein | C10: 10% | D10: 35% | E10: =$B$3*C10 ->  | G10: 4 | H10: =ROUND(E10/Table8[[#This Row],[cal/g]],0) ->  | I10: =ROUND(F10/Table8[[#This Row],[cal/g]],0) -> 
B11: Fat | C11: 20% | D11: 35% | G11: 9 | H11: =ROUND(E11/Table8[[#This Row],[cal/g]],0) ->  | I11: =ROUND(F11/Table8[[#This Row],[cal/g]],0) -> 
B13: * Based on the estimated energy required to maintain your current weight and the Dietary Reference Intake recommendations from the Insitute of Medicine.
C16: Calories | D16: Carbs | E16: Protein | F16: Fat
B17: Green bar | C17: =IF('Food diary'!D9>'Food diary'!D10,0,'Food diary'!D9/'Food diary'!D10) -> 0% | D17: =IF('Food diary'!E9>'Food diary'!E10,0,'Food diary'!E9/'Food diary'!E10) -> 0% | E17: =IF('Food diary'!$F$9>'Food diary'!$F$10,0,'Food diary'!$F$9/'Food diary'!$F$10) -> 0% | F17: =IF('Food diary'!G9>'Food diary'!G10,0,'Food diary'!G9/'Food diary'!G10) -> 0%
B18: Gray bar | C18: =IF('Food diary'!D9>'Food diary'!D10,0,('Food diary'!D10-'Food diary'!D9)/'Food diary'!D10) -> 100% | D18: =IF('Food diary'!E9>'Food diary'!E10,0,('Food diary'!E10-'Food diary'!E9)/'Food diary'!E10) -> 100% | E18: =IF('Food diary'!F9>'Food diary'!F10,0,('Food diary'!F10-'Food diary'!F9)/'Food diary'!F10) -> 100% | F18: =IF('Food diary'!G9>'Food diary'!G10,0,('Food diary'!G10-'Food diary'!G9)/'Food diary'!G10) -> 100%
B19: Red bar | C19: =IF('Food diary'!D9>'Food diary'!D10,100%,0) -> 0% | D19: =IF('Food diary'!E9>'Food diary'!E10,100%,0) -> 0% | E19: =IF('Food diary'!F9>'Food diary'!F10,100%,0) -> 0% | F19: =IF('Food diary'!G9>'Food diary'!G10,100%,0) -> 0%
